bitfinex/quotes_SOLUSD_20251207
["timestamp","ask_amount","ask_price","bid_price","bid_amount"]
[1765139985166,0.77,136.08,136.07,11.09742737]
[1765139985572,0.1,136.08,136.07,11.09742737]
[1765139988452,0.77,136.08,136.07,11.09742737]
[1765139988650,8.87,136.08,136.07,2.28748245]
[1765139988967,16.21861845,136.08,136.04,2.28748245]
[1765139989171,0.67,136.07,136.04,2.28748245]
[1765139990165,8.01921253,136.07,136.04,2.28748245]
[1765139990576,0.67,136.06,136.04,2.28748245]
[1765139990872,8.1,136.05,136.04,2.28748245]
[1765139991278,8.8,136.05,136.04,2.28748245]
[1765139996472,8.1,136.05,136.04,2.28748245]
[1765139996781,8.82,136.05,136.04,2.28748245]
[1765139999060,8.82,136.05,136.03,9.63868319]
[1765140000373,8.82,136.05,136.03,2.28748245]
[1765140000572,0.72,136.04,136.03,2.28748245]
[1765140001591,8.8,136.04,136.03,2.28748245]
[1765140002694,0.72,136.05,136.03,2.28748245]
[1765140002878,8.08,136.04,136.03,2.28748245]
[1765140003558,8.8,136.04,136.03,2.28748245]
[1765140004199,8.8,136.04,136.02,11.09742737]
[1765140004371,0.72,136.03,136.02,8.80994492]
[1765140005467,8.08,136.04,136.02,8.80994492]
[1765140005812,8.8,136.04,136.02,8.80994492]
[1765140006097,8.8,136.04,136.02,11.09742737]
[1765140007576,0.72,136.04,136.02,11.09742737]
[1765140007771,8.08,136.03,135.97,8.80994492]
[1765140008077,18.44748245,136.03,135.99,8.80994492]
[1765140008282,0.72,136.02,135.97,2.28748245]
[1765140008679,8.08,136.01,135.97,2.28748245]
[1765140008890,8.1,136.0,135.97,11.09742737]
[1765140009088,8.82,136.0,135.97,11.09742737]
[1765140009268,0.72,135.99,135.97,11.09742737]
[1765140009770,0.72,135.99,135.97,18.45197437]
[1765140010900,8.1,136.01,135.98,11.09742737]
[1765140011102,8.82,136.01,136.0,2.28748245]
[1765140011396,8.1,136.01,136.0,2.28748245]
[1765140011776,8.071135,136.04,136.01,8.80994492]
[1765140011985,8.82,136.03,136.01,11.09742737]
[1765140012391,8.82,136.03,136.01,8.80994492]
[1765140012607,8.82,136.03,136.0,2.28748245]
[1765140012608,0.72,136.02,136.0,2.28748245]
[1765140014708,0.72,136.02,135.97,2.28748245]
[1765140014886,8.07213547,136.02,135.98,8.80994492]
[1765140015086,15.451135,136.01,135.98,8.80994492]
[1765140015293,8.1,136.0,135.98,8.80994492]
[1765140015595,8.82,136.0,135.96,2.28748245]
[1765140015794,8.07348187,135.99,135.97,8.80994492]
[1765140015998,24.24461687,135.99,135.97,8.80994492]
[1765140016199,0.72,135.98,135.97,8.80994492]
[1765140016399,0.72,135.98,135.95,25.9518514]
[1765140016601,0.72,135.98,135.96,8.80994492]
[1765140017488,8.07402706,135.98,135.96,8.80994492]
[1765140019292,7.35402706,135.98,135.96,8.80994492]
[1765140019622,0.72,135.97,135.96,8.80994492]
[1765140021005,0.72,135.97,135.95,2.28748245]
[1765140022307,0.68,135.99,135.96,11.09742737]
[1765140022623,16.16397198,135.99,135.96,11.09742737]
[1765140022918,16.84397198,135.99,135.96,11.09742737]
[1765140023605,0.68,135.98,135.96,11.09742737]
[1765140025293,32.29752411,135.99,135.96,11.09742737]
[1765140026024,0.68,135.98,135.96,11.09742737]
[1765140028195,0.68,135.98,135.96,8.80994492]
[1765140036329,0.68,135.98,135.93,45.14684388]
[1765140036330,8.0341578,135.98,135.93,29.04330353]
[1765140036546,8.0341578,135.98,135.94,8.80994492]
[1765140036829,0.68,135.97,135.94,8.80994492]
[1765140037032,8.1,135.96,135.94,8.80994492]
[1765140037533,0.68,135.95,135.94,8.80994492]
[1765140040711,2.96748245,135.95,135.9,8.80994492]
[1765140040913,10.32322041,135.95,135.92,8.80994492]
[1765140041108,0.68,135.94,135.92,8.80994492]
[1765140042232,0.68,135.94,135.92,11.09742737]
[1765140043904,0.68,135.94,135.93,2.28748245]
[1765140044931,0.68,135.94,135.93,3.58169964]
[1765140045107,0.68,135.94,135.92,8.80994492]
[1765140045314,8.1,135.93,135.92,8.80994492]
[1765140045720,8.78,135.93,135.92,8.80994492]
[1765140047325,8.78,135.93,135.91,3.58169964]
[1765140047637,0.68,135.92,135.91,12.39164456]
[1765140049743,7.35623047,135.94,135.91,12.39164456]
[1765140049951,8.1,135.93,135.92,3.58169964]
[1765140050543,8.78,135.93,135.92,3.58169964]
[1765140050852,7.35581824,135.95,135.92,3.58169964]
[1765140051029,8.02581824,135.95,135.93,3.58169964]
[1765140051238,8.02581824,135.95,135.94,3.58169964]
[1765140051428,16.12581824,135.95,135.94,3.58169964]
[1765140052433,8.77,135.95,135.94,3.58169964]
[1765140060159,8.77,135.95,135.93,3.58169964]
[1765140060568,8.1,135.95,135.93,3.58169964]
[1765140060740,0.66,135.94,135.93,12.39164456]
[1765140096794,8.1,135.95,135.94,8.80994492]
[1765140096976,8.8,135.95,135.94,8.80994492]
[1765140097376,8.8,135.95,135.94,12.39164456]
[1765140097778,0.7,135.95,135.94,12.39164456]
[1765140104678,0.7,135.95,135.94,11.10182498]
[1765140108400,8.05417691,135.98,135.94,18.45794189]
[1765140108617,0.7,135.97,135.94,8.80994492]
[1765140108793,8.08,135.96,135.94,8.80994492]
[1765140109306,0.7,135.95,135.94,8.80994492]
[1765140110810,0.7,135.95,135.94,11.10182498]
[1765140111104,0.7,135.95,135.94,8.80994492]
[1765140112905,8.05564545,135.95,135.92,23.02587816]
[1765140113076,8.08,135.94,135.91,8.80994492]
[1765140113281,24.18547546,135.94,135.91,8.80994492]
[1765140113583,0.67,135.93,135.91,8.80994492]
[1765140119006,8.02675337,135.93,135.91,8.80994492]
[1765140119511,0.66,135.92,135.91,8.80994492]
[1765140122208,15.43547546,135.94,135.92,8.80994492]
[1765140122411,0.66,135.93,135.92,8.80994492]
[1765140135524,8.74,135.96,135.92,18.45898936]
[1765140135725,0.66,135.96,135.95,11.10182498]
[1765140136021,8.74,135.98,135.96,8.80994492]
[1765140136222,0.66,135.97,135.96,11.10182498]
[1765140137097,8.74,135.98,135.96,11.10182498]
[1765140137294,8.08,135.98,135.97,11.10182498]
[1765140137820,8.74,135.98,135.97,11.10182498]
[1765140141808,8.75,136.0,135.97,18.45631926]
[1765140142010,0.67,135.99,135.98,2.29188006]
[1765140142923,0.67,135.99,135.98,11.10182498]
[1765140143129,8.08,136.0,135.98,11.10182498]
[1765140143329,8.75,136.0,135.99,2.29188006]
[1765140143530,8.75,136.0,135.99,11.10182498]
[1765140144622,0.67,136.02,136.0,8.80994492]
[1765140144832,0.67,136.02,136.01,2.29188006]
[1765140144833,8.08,136.02,136.01,2.29188006]
[1765140145332,8.75,136.02,136.01,2.29188006]
[1765140146532,8.75,136.02,136.0,11.10182498]
[1765140146732,0.67,136.01,136.0,11.10182498]
[1765140151744,8.02240055,136.01,135.99,2.29188006]
[1765140152120,0.67,136.0,135.99,2.29188006]
[1765140153142,8.02294117,136.0,135.98,11.10182498]
[1765140153349,8.02294117,136.0,135.97,11.10182498]
[1765140153518,0.67,135.99,135.97,11.10182498]
[1765140154439,8.75,135.99,135.97,11.10182498]
[1765140154833,0.67,135.98,135.97,11.10182498]
[1765140160124,8.08,135.99,135.97,18.45616003]
[1765140160333,16.10245733,136.01,135.98,2.29188006]
[1765140160549,8.08,136.01,136.0,2.29188006]
[1765140161033,8.75,136.01,136.0,2.29188006]
[1765140163844,0.67,136.01,136.0,2.29188006]
[1765140164944,0.67,136.01,136.0,11.10182498]
[1765140166647,0.67,136.01,136.0,12.38745496]
[1765140168058,0.67,136.01,136.0,19.74039613]
[1765140170662,0.67,136.02,136.0,19.74039613]
[1765140170866,0.67,136.02,136.01,3.57751004]
[1765140173467,0.67,136.02,136.0,12.38745496]
[1765140174258,0.67,136.02,136.0,8.80994492]
[1765140174462,0.67,136.02,136.01,3.57751004]
[1765140185666,0.71,136.02,136.01,3.57751004]
[1765140186856,8.08,136.03,136.02,8.80994492]
[1765140187047,8.79,136.03,136.02,12.38745496]
[1765140187569,27.18337104,136.07,136.02,12.38745496]
[1765140187570,8.79,136.05,136.02,12.38745496]
[1765140187772,8.79,136.05,136.04,3.57751004]
[1765140188071,8.08,136.05,136.04,3.57751004]
[1765140188473,8.79,136.05,136.04,3.57751004]
[1765140188772,16.14035157,136.05,136.03,3.57751004]
[1765140188969,0.71,136.04,136.03,12.38745496]
[1765140192741,8.08,136.05,136.04,8.80994492]
[1765140192983,8.79,136.05,136.04,12.38745496]
[1765140194272,0.71,136.05,136.04,12.38745496]
[1765140197064,8.06023888,136.05,136.03,3.57751004]
[1765140197266,8.06023888,136.05,136.02,3.57751004]
[1765140197474,0.71,136.04,136.03,3.57751004]
[1765140200987,8.06077918,136.04,136.03,3.57751004]
[1765140202269,8.06077918,136.04,136.02,3.57751004]
[1765140202470,7.35077918,136.04,136.03,3.57751004]
[1765140203066,8.02077918,136.04,136.03,3.57751004]
[1765140206792,16.10042014,136.05,136.03,3.57751004]
[1765140206966,15.43042014,136.05,136.04,3.57751004]
[1765140207498,16.10042014,136.05,136.04,3.57751004]
[1765140211086,8.08,136.05,136.04,12.38745496]
[1765140212389,8.75,136.05,136.04,12.38745496]
[1765140212594,0.67,136.05,136.04,12.38745496]
[1765140212968,16.09918392,136.07,136.04,12.38745496]
[1765140213169,15.42918392,136.07,136.06,3.57751004]
[1765140213698,16.09918392,136.07,136.06,3.57751004]
[1765140214281,16.09918392,136.07,136.05,3.57751004]
[1765140214473,0.67,136.06,136.05,3.57751004]
[1765140226697,0.67,136.06,136.05,2.28818896]
[1765140227504,0.67,136.06,136.04,2.28818896]
[1765140227712,0.67,136.06,136.05,2.28818896]
[1765140229007,8.08,136.07,136.05,2.28818896]
[1765140229191,0.67,136.06,136.04,7.35069375]
[1765140229394,0.67,136.06,136.04,8.80994492]
[1765140229905,8.01978922,136.06,136.0,35.75304252]
[1765140230113,8.01978922,136.06,136.01,8.80994492]
[1765140230315,0.67,136.05,136.03,2.28818896]
[1765140231908,8.02025929,136.05,136.03,2.28818896]
[1765140232205,8.02025929,136.05,136.02,2.28818896]
[1765140232410,0.65,136.04,136.02,2.28818896]
[1765140232709,0.65,136.04,136.03,2.28818896]
[1765140240512,8.00081155,136.04,136.02,2.28818896]
[1765140240713,8.00081155,136.04,136.01,11.09813388]
[1765140240910,0.71,136.03,136.01,11.09813388]
[1765140241516,8.06136279,136.03,135.99,2.28818896]
[1765140241709,30.13560582,136.03,135.99,2.28818896]
[1765140241891,0.71,136.02,135.99,2.28818896]
[1765140243589,8.06222743,136.02,135.99,2.28818896]
[1765140244319,0.71,136.01,135.99,2.28818896]
[1765140246512,8.08,136.04,136.0,2.28818896]
[1765140246819,0.71,136.02,136.01,2.28818896]
[1765140252223,0.71,136.02,136.0,11.09813388]
[1765140254226,8.06190818,136.02,136.0,11.09813388]
[1765140254718,0.71,136.01,136.0,11.09813388]
[1765140254901,0.71,136.02,136.0,11.09813388]
[1765140255097,15.43109145,136.04,136.01,2.28818896]
[1765140255315,15.43109145,136.04,136.0,16.16280483]
[1765140255316,0.71,136.03,136.02,2.28818896]
[1765140256230,8.08,136.04,136.02,2.28818896]
[1765140256426,8.08,136.04,136.03,2.28818896]
[1765140256626,8.79,136.04,136.03,2.28818896]
[1765140258610,0.71,136.04,136.03,2.28818896]
[1765140267432,8.06077918,136.04,136.03,2.28818896]
[1765140271741,8.06077918,136.04,136.0,32.47152748]
[1765140271926,0.68,136.03,136.02,2.28818896]
[1765140272835,8.03037944,136.05,136.02,2.28818896]
[1765140273015,8.03037944,136.05,136.03,2.28818896]
[1765140273529,7.35037944,136.05,136.03,2.28818896]
[1765140273709,0.68,136.04,136.03,11.09813388]
[1765140275639,7.35037944,136.05,136.03,11.09813388]
[1765140275825,16.10992691,136.06,136.04,11.09813388]
[1765140276026,15.42992691,136.06,136.05,2.28818896]
[1765140277037,8.02992691,136.06,136.05,2.28818896]
[1765140278423,8.18,136.08,136.05,2.28818896]
[1765140278615,0.1,136.08,136.07,27.40699788]
[1765140280317,0.78,136.08,136.07,27.40699788]
[1765140280730,0.78,136.08,136.07,11.09813388]
[1765140281133,0.1,136.08,136.07,11.09813388]
[1765140281542,0.78,136.08,136.07,11.09813388]
[1765140282120,0.1,136.08,136.07,11.09813388]
[1765140282335,0.78,136.08,136.07,11.09813388]
[1765140288627,0.78,136.08,136.07,8.80994492]
[1765140288835,0.78,136.08,136.07,12.3842893]
[1765140299652,8.12861845,136.08,136.06,3.57434438]
[1765140300153,0.68,136.07,136.06,12.3842893]
[1765140300355,0.68,136.07,136.03,14.20857798]
[1765140300558,8.02964024,136.07,136.03,3.57434438]
[1765140301269,0.68,136.06,136.03,3.57434438]
[1765140301568,0.68,136.06,136.02,19.73576409]
[1765140301752,0.68,136.06,136.03,3.57434438]
[1765140303471,8.02985428,136.06,136.02,19.73576409]
[1765140303965,0.68,136.05,136.02,19.73576409]
[1765140304974,0.68,136.05,136.03,3.57434438]
[1765140309277,8.0303099,136.05,136.02,12.3842893]
[1765140309646,0.68,136.04,136.02,8.80994492]
[1765140309850,0.68,136.04,136.0,21.56117875]
[1765140310044,0.68,136.04,136.01,8.80994492]
[1765140310977,8.03110254,136.04,136.01,8.80994492]
[1765140311171,0.68,136.03,136.01,8.80994492]
[1765140311876,0.68,136.03,136.0,3.57434438]
[1765140312960,8.03176237,136.03,136.0,3.57434438]
[1765140313162,0.68,136.02,136.0,3.57434438]
[1765140317182,0.68,136.02,136.01,3.57434438]
[1765140318981,0.68,136.02,136.0,12.3842893]
[1765140323502,0.68,136.02,135.99,23.66231929]
[1765140323503,8.03189781,136.02,135.99,3.57434438]
[1765140323779,0.66,136.01,135.98,8.80994492]
[1765140324480,0.66,136.01,135.97,8.80994492]
[1765140324864,0.66,136.01,135.95,3.57434438]
[1765140325196,0.66,136.01,135.96,8.80994492]
[1765140325197,26.3167116,136.01,135.96,8.80994492]
[1765140325685,7.35348187,135.99,135.96,8.80994492]
[1765140325873,15.43348187,135.99,135.96,8.80994492]
[1765140326194,0.66,135.98,135.96,8.80994492]
[1765140328783,8.01413294,135.98,135.96,8.80994492]
[1765140329370,0.66,135.97,135.96,8.80994492]
[1765140329883,0.66,135.97,135.95,3.57434438]
[1765140330072,0.66,135.97,135.94,3.57434438]
[1765140330668,0.66,135.97,135.93,12.3842893]
[1765140330995,0.66,135.97,135.93,3.57434438]
[1765140330996,33.82286554,135.96,135.93,3.57434438]
[1765140331492,0.66,135.95,135.93,3.57434438]
[1765140332695,7.35618655,135.94,135.93,3.57434438]
[1765140333066,8.01618655,135.94,135.93,3.57434438]
[1765140333271,0.66,135.97,135.94,8.80994492]
[1765140333473,8.74,135.97,135.95,3.57434438]
[1765140333975,0.66,135.96,135.95,3.57434438]
[1765140335292,16.09396768,135.99,135.95,3.57434438]
[1765140335481,0.66,135.98,135.97,3.57434438]
[1765140336074,0.66,135.98,135.96,3.57434438]
[1765140336274,0.66,135.98,135.97,3.57434438]
[1765140337394,0.66,135.98,135.96,3.57434438]
[1765140338097,8.01313751,136.0,135.97,3.57434438]
[1765140338778,0.66,135.99,135.97,3.57434438]
[1765140345284,8.74,136.01,135.99,8.80994492]
[1765140345597,0.66,136.02,136.0,12.3842893]
[1765140348709,0.66,136.02,136.0,11.09975098]
[1765140357211,8.01190836,136.02,136.0,11.09975098]
[1765140357627,0.67,136.01,136.0,11.09975098]
[1765140363832,7.35190836,136.02,136.0,11.09975098]
[1765140364034,8.02190836,136.02,136.0,11.09975098]
[1765140364423,0.67,136.01,136.0,11.09975098]
[1765140381152,8.08,136.06,136.01,8.80994492]
[1765140381354,0.76,136.09,136.05,27.40861498]
[1765140381653,0.1,136.09,136.07,11.09975098]
[1765140384653,0.76,136.09,136.07,11.09975098]
[1765140390683,0.1,136.09,136.07,11.09975098]
[1765140393673,0.1,136.09,136.07,18.4489095]
[1765140395093,0.76,136.08,136.07,11.09975098]
[1765140396492,8.10861845,136.08,136.07,2.28980606]
[1765140396987,8.10861845,136.08,136.06,11.09975098]
[1765140397188,7.44861845,136.08,136.07,2.28980606]
[1765140397689,8.10861845,136.08,136.07,2.28980606]
[1765140399888,8.10861845,136.08,136.06,11.09975098]
[1765140400097,0.66,136.07,136.06,11.09975098]
[1765140404494,0.66,136.07,136.06,2.28980606]
[1765140405683,0.1,136.08,136.06,2.28980606]
[1765140405888,0.76,136.08,136.07,11.09975098]
[1765140410707,0.76,136.08,136.07,12.38414798]
[1765140420235,0.1,136.08,136.07,12.38414798]
[1765140420413,11.69282151,136.08,136.01,12.38414798]
[1765140420720,8.08,136.07,136.02,3.57420306]
[1765140420921,8.75,136.07,136.02,3.57420306]
[1765140421249,4.24420306,136.06,135.99,3.57420306]
[1765140421559,4.24420306,136.06,136.0,8.80994492]
[1765140421738,0.67,136.05,136.0,8.80994492]
[1765140422050,7.35131956,136.03,136.0,8.80994492]
[1765140422554,0.67,136.02,136.0,8.80994492]
[1765140424352,0.67,136.02,136.0,12.38414798]
[1765140424727,8.02211894,136.02,136.0,12.38414798]
[1765140425121,0.67,136.01,136.0,12.38414798]
[1765140426957,0.67,136.01,136.0,3.57420306]
[1765140426958,8.02240055,136.01,136.0,3.57420306]
[1765140427135,0.67,136.01,136.0,3.57420306]
[1765140429152,8.02153138,136.03,136.0,3.57420306]
[1765140429458,8.02153138,136.03,136.02,3.57420306]
[1765140432341,7.35099191,136.04,136.02,3.57420306]
[1765140432657,7.35099191,136.04,136.03,3.57420306]
[1765140432658,0.67,136.04,136.03,3.57420306]
[1765140432839,8.08,136.05,136.03,3.57420306]
[1765140433157,8.08,136.05,136.04,3.57420306]
[1765140433854,16.10042119,136.05,136.03,3.57420306]
[1765140434057,0.67,136.04,136.03,3.57420306]
[1765140438360,8.02077918,136.04,136.03,3.57420306]
[1765140440577,8.08,136.05,136.03,12.38414798]
[1765140440578,15.43031996,136.05,136.03,12.38414798]
[1765140440753,0.68,136.06,136.04,12.38414798]
[1765140441078,0.68,136.06,136.05,3.57420306]
[1765140441880,8.18,136.08,136.05,3.57420306]
[1765140442083,0.68,136.07,136.05,8.80994492]
[1765140442585,0.68,136.07,136.04,8.80994492]
[1765140443149,0.68,136.07,136.06,3.57420306]
[1765140445784,8.02915852,136.07,136.06,3.57420306]
[1765140448789,0.68,136.07,136.06,3.57420306]
[1765140449580,16.20875433,136.08,136.06,3.57420306]
[1765140449782,16.20875433,136.08,136.07,3.57420306]
[1765140449982,15.52875433,136.08,136.07,3.57420306]
[1765140450486,16.20875433,136.08,136.07,3.57420306]
[1765140469716,8.18,136.08,136.07,3.57420306]
[1765140469894,0.1,136.08,136.07,12.38414798]
[1765140470641,0.1,136.08,136.07,19.7333065]
[1765140471017,0.8,136.08,136.07,12.38414798]
[1765140472733,0.8,136.08,136.07,11.09743997]
[1765140474925,0.8,136.08,136.07,8.80994492]
[1765140475426,0.1,136.08,136.07,8.80994492]
[1765140475735,0.1,136.08,136.07,11.09743997]
[1765140479728,0.1,136.08,136.07,18.44659849]
[1765140480327,0.1,136.08,136.07,34.75546249]
[1765140480846,0.78,136.08,136.07,34.75546249]
[1765140482835,0.1,136.08,136.07,34.75546249]
[1765140483865,0.78,136.08,136.06,2.28749505]
[1765140484147,0.78,136.08,136.05,11.09743997]
[1765140485849,8.12882611,136.08,136.05,2.28749505]
[1765140486052,8.12882611,136.08,136.04,8.80994492]
[1765140486247,0.68,136.07,136.04,8.80994492]
[1765140486454,0.68,136.07,136.05,2.28749505]
[1765140487169,0.68,136.07,136.02,10.04425225]
[1765140487375,8.76,136.07,136.03,11.09743997]
[1765140487740,0.68,136.06,136.03,11.09743997]
[1765140487954,8.0298375,136.06,136.03,11.09743997]
[1765140488465,8.0298375,136.06,136.03,2.28749505]
[1765140488642,0.68,136.05,136.03,2.28749505]
[1765140490062,8.03025894,136.05,136.03,2.28749505]
[1765140490256,8.03025894,136.05,136.02,2.28749505]
[1765140490455,0.68,136.04,136.02,2.28749505]
[1765140491672,8.03095163,136.04,136.02,2.28749505]
[1765140492051,0.68,136.03,136.02,2.28749505]
[1765140493269,0.68,136.03,136.02,11.09743997]
[1765140493464,34.53370515,136.07,136.02,11.09743997]
[1765140493465,0.68,136.06,136.02,2.28749505]
[1765140493660,0.68,136.06,136.05,2.28749505]
[1765140494260,8.02982773,136.06,136.05,2.28749505]
[1765140495670,8.02982773,136.06,136.04,2.28749505]
[1765140495845,0.68,136.05,136.04,2.28749505]
[1765140496301,15.42929587,136.07,136.04,11.09743997]
[1765140496454,0.68,136.06,136.05,2.28749505]
[1765140496854,0.68,136.06,136.04,11.09743997]
[1765140504778,8.0297889,136.06,136.04,11.09743997]
[1765140505180,0.66,136.05,136.02,2.28749505]
[1765140505557,7.35077918,136.04,136.02,2.28749505]
[1765140505970,7.35077918,136.04,136.02,11.09743997]
[1765140505971,0.66,136.03,136.02,11.09743997]
[1765140510294,8.01131956,136.03,136.01,2.28749505]
[1765140510779,0.66,136.02,136.01,11.09743997]
[1765140512771,8.01186002,136.02,136.01,2.28749505]
[1765140520988,0.66,136.05,136.02,8.80994492]
[1765140521191,0.66,136.05,136.03,2.28749505]
[1765140522386,25.72394531,136.06,136.04,2.28749505]
[1765140522591,8.00969866,136.06,136.05,2.28749505]
[1765140525195,0.66,136.06,136.05,2.28749505]
[1765140525492,8.10884334,136.08,136.06,8.80994492]
[1765140525693,8.10884334,136.08,136.07,2.28749505]
[1765140526692,8.10884334,136.08,136.07,11.09743997]
[1765140526693,0.1,136.08,136.07,11.09743997]
[1765140527790,0.76,136.08,136.07,11.09743997]
[1765140531677,0.1,136.08,136.07,11.09743997]
[1765140532701,0.1,136.08,136.07,12.38349187]
[1765140535405,0.78,136.08,136.07,12.38349187]
[1765140536383,0.1,136.08,136.07,12.38349187]
[1765140542094,0.75,136.08,136.07,12.38349187]
[1765140543717,0.75,136.08,136.07,3.57354695]
[1765140547318,0.1,136.08,136.07,12.38349187]
[1765140547531,0.1,136.08,136.07,19.73265039]
[1765140550014,0.1,136.08,136.07,12.38349187]
[1765140550015,0.75,136.08,136.07,12.38349187]
[1765140550810,0.1,136.08,136.07,12.38349187]
[1765140555422,0.75,136.08,136.07,12.38349187]
[1765140557223,0.1,136.08,136.07,19.73265039]
[1765140565821,0.81,136.08,136.07,12.38349187]
[1765140566931,0.81,136.08,136.07,8.80994492]
[1765140572238,0.81,136.08,136.06,8.80994492]
[1765140572424,8.15864856,136.08,136.06,8.80994492]
[1765140572913,0.71,136.07,136.06,8.80994492]
[1765140573833,8.0591764,136.07,136.05,16.308864]
[1765140574242,0.71,136.06,136.05,25.11880892]
[1765140574949,0.71,136.06,136.03,24.93198376]
[1765140575240,0.71,136.06,136.04,8.80994492]
[1765140577338,0.81,136.08,136.05,3.57354695]
[1765140579139,0.81,136.08,136.04,42.97356364]
[1765140580539,0.81,136.08,136.06,8.80994492]
[1765140582724,0.81,136.08,136.06,16.15944571]
[1765140585841,0.1,136.08,136.06,19.73299266]
[1765140586251,0.1,136.08,136.06,27.18069731]
[1765140586543,0.81,136.08,136.06,27.18069731]
[1765140591260,0.81,136.08,136.06,16.25764957]
[1765140591454,0.81,136.08,136.06,8.80994492]
[1765140591628,8.1586778,136.08,136.04,10.04425225]
[1765140591951,0.7,136.07,136.04,8.80994492]
[1765140592141,0.7,136.07,136.03,8.80994492]
[1765140593533,0.7,136.07,136.01,31.79884698]
[1765140593534,7.34969866,136.06,136.01,39.15105072]
[1765140593736,7.34969866,136.06,136.02,8.80994492]
[1765140593929,0.7,136.05,136.02,8.80994492]
[1765140594754,8.05025838,136.05,136.02,8.80994492]
[1765140595137,0.7,136.04,136.02,8.80994492]
[1765140600757,0.7,136.06,136.02,18.45088299]
[1765140600976,0.7,136.06,136.03,2.28914855]
[1765140601651,0.7,136.06,136.02,62.28723771]
[1765140601857,0.7,136.06,136.02,18.85419717]
[1765140602551,8.05018747,136.06,136.02,18.85419717]
[1765140602957,0.7,136.05,136.02,8.80994492]
[1765140604562,8.78,136.05,136.02,8.80994492]
[1765140604941,0.7,136.04,136.02,8.80994492]
[1765140623004,8.05087237,136.04,135.99,8.80994492]
[1765140623500,0.68,136.03,135.99,8.80994492]
[1765140623684,8.08,136.02,135.99,8.80994492]
[1765140624008,0.68,136.01,135.99,8.80994492]
[1765140624610,2.28914855,136.0,135.95,9.52160097]
[1765140624775,2.28914855,135.98,135.92,7.356866]
[1765140624974,2.28914855,135.98,135.93,8.80994492]
[1765140625177,0.68,135.97,135.93,8.80994492]
[1765140627511,0.68,135.97,135.93,16.16645114]
[1765140627804,8.03474644,135.97,135.93,16.16645114]
[1765140628801,0.68,135.96,135.93,16.16645114]
[1765140628998,8.03536297,135.96,135.93,8.80994492]
[1765140629208,16.11536297,135.96,135.93,8.80994492]
[1765140629398,0.68,135.95,135.92,8.80994492]
[1765140632699,8.03574173,135.95,135.92,8.80994492]
[1765140633206,0.68,135.94,135.92,8.80994492]
[1765140634490,0.68,135.94,135.92,11.09909347]
[1765140640017,0.68,135.94,135.92,8.80994492]
[1765140644702,0.68,135.94,135.92,11.09909347]
[1765140646729,8.08,135.96,135.93,2.28914855]
[1765140646896,0.68,135.95,135.93,11.09909347]
[1765140648710,0.68,135.95,135.93,18.45579154]
[1765140654128,0.68,135.95,135.93,16.16664299]
[1765140655532,8.78,135.97,135.94,12.39140164]
[1765140655705,8.78,135.97,135.95,3.58145672]
[1765140655906,8.08,135.97,135.95,3.58145672]
[1765140656105,0.65,135.96,135.95,12.39140164]
[1765140657021,0.65,135.96,135.95,8.80994492]
[1765140660130,0.65,135.96,135.95,12.39140164]
[1765140661529,0.65,135.96,135.95,8.80994492]
[1765140662628,0.65,135.97,135.95,8.80994492]
[1765140663114,0.65,135.97,135.95,12.39140164]
[1765140664932,16.08330484,136.0,135.96,12.39140164]
[1765140665232,16.08330484,136.0,135.98,8.80994492]
[1765140665435,0.65,135.99,135.98,8.80994492]
[1765140670642,11.58493859,135.99,135.94,8.80994492]
[1765140670841,29.96864327,135.99,135.94,8.80994492]
[1765140671145,0.65,135.98,135.94,8.80994492]
[1765140671446,8.08,135.97,135.94,8.80994492]
[1765140671942,0.65,135.96,135.94,8.80994492]
[1765140675546,0.65,135.98,135.95,8.80994492]
[1765140675725,7.35294117,136.0,135.95,8.80994492]
[1765140675923,8.08,135.99,135.93,19.74793576]
[1765140676128,7.35402265,135.98,135.93,16.16647904]
[1765140676486,8.00402265,135.98,135.93,16.16647904]
[1765140676624,0.65,135.97,135.93,16.16647904]